bitfinex/quotes_SOLUSD_20220307
["timestamp","ask_amount","ask_price","bid_price","bid_amount"]
[1646668191942,5.871,85.188,85.114,0.25]
[1646668192143,6.25,85.187,85.114,0.25]
[1646668192339,0.25,85.186,85.114,70.31]
[1646668192539,6.25,85.189,85.114,70.31]
[1646668192738,17.6221,85.18,85.114,70.31]
[1646668192938,6.25,85.179,85.114,70.31]
[1646668193340,6.25,85.179,85.114,0.25]
[1646668193539,46.04729452,85.178,85.111,22.5162]
[1646668193741,17.6238,85.17,85.111,22.5162]
[1646668193939,6.25,85.169,85.111,22.5162]
[1646668194543,0.25,85.169,85.111,22.5162]
[1646668194943,5.872,85.168,85.111,22.5162]
[1646668195142,17.6258,85.16,85.111,22.5162]
[1646668195341,43.08030918,85.159,85.111,22.5162]
[1646668195845,42.83030918,85.159,85.112,0.25]
[1646668196144,36.83030918,85.159,85.112,0.25]
[1646668196344,36.83030918,85.159,85.112,116.95]
[1646668196942,36.83030918,85.159,85.112,0.25]
[1646668197143,0.25,85.158,85.112,0.25]
[1646668198243,6.25,85.158,85.112,0.25]
[1646668199844,6.25,85.158,85.112,6.25]
[1646668200847,6.25,85.158,85.112,0.25]
[1646668201049,6.0,85.158,85.112,0.25]
[1646668201249,5.873,85.158,85.112,116.95]
[1646668202247,5.873,85.176,85.112,116.95]
[1646668202450,6.25,85.175,85.112,116.95]
[1646668202649,0.25,85.175,85.112,116.95]
[1646668203052,34.57247548,85.173,85.112,116.95]
[1646668203250,6.0,85.172,85.12,17.6213]
[1646668203448,6.0,85.172,85.121,0.25]
[1646668204649,17.624,85.17,85.111,22.5162]
[1646668204852,6.0,85.169,85.111,22.5162]
[1646668205048,6.122,85.168,85.111,22.5162]
[1646668205249,6.0,85.167,85.111,22.5162]
[1646668205449,6.122,85.166,85.111,22.5162]
[1646668205649,6.0,85.165,85.111,22.5162]
[1646668205854,17.632,85.16,85.081,70.06]
[1646668206049,12.123,85.159,85.081,70.06]
[1646668206251,1.58058321,85.157,85.07,23.4293]
[1646668206450,1.58058321,85.153,85.071,24.3917]
[1646668206652,16.93,85.15,85.072,37.80478246]
[1646668206851,17.631,85.14,85.071,24.3917]
[1646668207052,6.25,85.139,85.071,24.3917]
[1646668207652,6.25,85.139,85.072,0.25]
[1646668207852,39.68748014,85.138,85.072,0.25]
[1646668208052,6.25,85.137,85.072,0.25]
[1646668208253,17.6336,85.13,85.072,0.25]
[1646668208452,6.25,85.129,85.072,0.25]
[1646668209053,0.25,85.129,85.072,116.95]
[1646668209275,0.25,85.135,85.072,116.95]
[1646668209653,0.25,85.135,85.08,17.6299]
[1646668209852,0.25,85.135,85.081,44.6845793]
[1646668210452,0.25,85.137,85.081,44.6845793]
[1646668210653,0.25,85.137,85.082,116.7]
[1646668210854,5.873,85.147,85.091,116.7]
[1646668211053,5.873,85.147,85.081,44.4345793]
[1646668211054,6.0,85.146,85.094,70.06]
[1646668211253,6.0,85.145,85.104,70.06]
[1646668211457,6.0,85.164,85.106,70.06]
[1646668211654,1.58058321,85.171,85.108,0.43958262]
[1646668211858,40.46590185,85.167,85.111,116.7]
[1646668212056,11.872,85.166,85.114,0.43958262]
[1646668212355,6.0,85.165,85.124,70.06]
[1646668212555,1.58058321,85.181,85.13,0.43958262]
[1646668212855,1.58058321,85.188,85.13,0.68958262]
[1646668213056,23.684,85.199,85.143,116.7]
[1646668213057,1.58058321,85.193,85.143,116.7]
[1646668213257,1.58058321,85.195,85.151,116.7]
[1646668213457,1.58058321,85.195,85.152,0.25]
[1646668213657,1.58058321,85.193,85.152,0.25]
[1646668214257,1.58058321,85.191,85.152,0.25]
[1646668214458,11.87,85.19,85.152,0.25]
[1646668214658,0.25,85.189,85.133,0.25]
[1646668214857,5.871,85.188,85.133,0.25]
[1646668215060,47.78356938,85.186,85.132,46.5641363]
[1646668215262,6.25,85.185,85.133,122.7]
[1646668215461,0.25,85.185,85.134,70.31]
[1646668215661,0.25,85.185,85.136,70.06]
[1646668215862,0.25,85.185,85.137,0.25]
[1646668216261,6.25,85.185,85.137,0.25]
[1646668216883,6.25,85.185,85.134,0.25]
[1646668217085,6.25,85.185,84.997,24.5347943]
[1646668217384,1.58058321,85.176,85.07,16.93]
[1646668217583,6.25,85.175,85.099,43.19872076]
[1646668217782,1.58058321,85.174,85.109,23.3797]
[1646668217982,6.25,85.173,85.109,23.3797]
[1646668218387,7.83058321,85.173,85.109,23.3797]
[1646668218584,17.6243,85.17,85.11,0.25]
[1646668218785,46.2729095,85.169,85.11,0.25]
[1646668219287,46.2729095,85.169,85.109,23.3797]
[1646668219288,1.58058321,85.166,85.109,23.3797]
[1646668219483,17.6261,85.16,85.109,23.3797]
[1646668219685,6.25,85.159,85.109,23.3797]
[1646668220083,6.25,85.159,85.082,116.7]
[1646668220285,0.25,85.159,85.083,29.3797]
[1646668220485,7.83058321,85.159,85.084,0.25]
[1646668220684,1.58058321,85.158,85.084,0.25]
[1646668220885,37.91021204,85.156,85.084,0.25]
[1646668221186,12.123,85.155,85.09,17.6278]
[1646668221384,12.123,85.155,85.091,12.67600454]
[1646668221792,6.25,85.155,85.098,186.76]
[1646668221985,6.25,85.155,85.099,116.95]
[1646668222186,0.25,85.155,85.099,0.25]
[1646668222386,0.25,85.155,85.1,17.6258]
[1646668222586,0.25,85.155,85.101,0.25]
[1646668222786,0.25,85.155,85.099,0.25]
[1646668223187,5.873,85.154,85.099,0.25]
[1646668223386,6.25,85.153,85.099,0.25]
[1646668223586,17.6281,85.15,85.088,6.0]
[1646668223786,6.25,85.149,85.088,6.0]
[1646668224188,6.25,85.149,85.089,44.22774487]
[1646668224986,6.25,85.149,85.09,0.25]
[1646668225188,6.25,85.149,85.09,134.5769]
[1646668225389,0.25,85.149,85.09,134.5769]
[1646668225587,0.25,85.154,85.092,116.7]
[1646668225787,5.873,85.153,85.094,186.76]
[1646668225987,5.873,85.153,85.096,186.76]
[1646668226188,5.873,85.162,85.101,186.76]
[1646668226388,6.0,85.161,85.104,0.24156217]
[1646668226588,39.17790192,85.169,85.105,192.633]
[1646668226795,1.58058321,85.172,85.107,186.76]
[1646668226991,1.58058321,85.172,85.109,186.76]
[1646668227189,5.873,85.185,85.112,0.28028208]
[1646668227389,6.0,85.184,85.114,0.28028208]
[1646668227588,5.872,85.183,85.115,192.632]
[1646668227788,39.49359768,85.182,85.121,186.76]
[1646668227988,39.49359768,85.182,85.123,186.76]
[1646668228189,39.49359768,85.182,85.125,186.76]
[1646668228488,39.49359768,85.182,85.128,70.06]
[1646668228690,39.49359768,85.182,85.129,6.121]
[1646668229290,6.0,85.181,85.129,6.121]
[1646668230693,17.6216,85.18,85.129,6.121]
[1646668230898,6.0,85.179,85.129,6.121]
[1646668231093,6.121,85.178,85.123,23.6025]
[1646668231296,6.0,85.177,85.123,23.6025]
[1646668231494,5.871,85.176,85.123,23.6025]
[1646668231702,5.871,85.176,85.07,16.93]
[1646668231703,1.58058321,85.171,85.112,5.872]
[1646668231894,13.70258321,85.17,85.092,36.02955808]
[1646668232097,6.0,85.17,85.113,70.06]
[1646668232304,1.58058321,85.171,85.115,70.06]
[1646668232594,41.07418089,85.182,85.118,91.64254344]
[1646668232894,6.0,85.181,85.119,122.7]
[1646668233094,6.0,85.181,85.121,116.7]
[1646668233295,0.25,85.18,85.122,12.121]
[1646668233495,1.58058321,85.178,85.117,23.7987]
[1646668233694,1.58058321,85.173,85.117,23.7987]
[1646668233895,1.58058321,85.173,85.06,16.93]
[1646668233896,6.25,85.172,85.06,16.93]
[1646668234096,17.626,85.16,85.085,29.2325]
[1646668234298,6.25,85.159,85.085,29.2325]
[1646668234697,9.08613526,85.159,85.085,29.2325]
[1646668234896,2.83613526,85.158,85.085,29.2325]
[1646668235097,17.6284,85.15,85.085,29.2325]
[1646668235296,34.71874896,85.148,85.085,29.2325]
[1646668235498,6.25,85.147,85.085,29.2325]
[1646668236297,6.25,85.147,85.09,17.629]
[1646668236496,6.25,85.147,85.085,29.2325]
[1646668236497,6.25,85.147,85.091,5.873]
[1646668236697,6.25,85.147,85.085,23.3595]
[1646668236698,0.25,85.147,85.092,0.25]
[1646668236897,6.0,85.146,85.093,5.873]
[1646668237097,6.25,85.147,85.094,0.25]
[1646668237300,6.25,85.147,85.1,17.6269]
[1646668237499,6.25,85.147,85.101,0.25]
[1646668238505,0.25,85.147,85.101,0.25]
[1646668238704,6.25,85.147,85.101,0.25]
[1646668239103,0.25,85.147,85.101,0.25]
[1646668239604,0.25,85.155,85.11,17.6247]
[1646668239808,6.25,85.156,85.111,6.25]
[1646668240002,0.25,85.156,85.111,6.25]
[1646668240203,2.83613526,85.158,85.111,0.25]
[1646668240406,1.58058321,85.168,85.121,116.7]
[1646668240605,2.83613526,85.175,85.113,0.23166671]
[1646668240606,2.83613526,85.175,85.123,22.81145639]
[1646668240805,6.0,85.174,85.124,198.882]
[1646668241205,1.58058321,85.179,85.124,82.182]
[1646668241404,6.0,85.178,85.124,82.182]
[1646668241804,3.16611048,85.203,85.124,82.182]
[1646668241805,1.58058321,85.182,85.14,116.7]
[1646668242006,103.16611048,85.206,85.143,70.06]
[1646668242007,1.58058321,85.186,85.143,70.06]
[1646668242204,1.58058321,85.187,85.145,70.06]
[1646668242407,1.58058321,85.188,85.146,0.25]
[1646668242605,1.58058321,85.188,85.146,6.25]
[1646668243208,1.58058321,85.189,85.146,6.25]
[1646668243422,1.58058321,85.189,85.146,0.25]
[1646668243807,1.58058321,85.188,85.146,0.25]
[1646668244009,1.58058321,85.189,85.146,0.25]
[1646668244408,1.58058321,85.188,85.146,0.25]
[1646668244607,1.58058321,85.189,85.143,0.25]
[1646668244809,1.58058321,85.189,85.144,5.87]
[1646668245011,1.58058321,85.189,85.145,0.25]
[1646668245309,1.83058321,85.188,85.15,17.6164]
[1646668245508,1.83058321,85.188,85.151,0.25]
[1646668245709,0.25,85.188,85.151,0.25]
[1646668246410,1.83058321,85.188,85.151,0.25]
[1646668246609,1.83058321,85.188,85.146,0.25]
[1646668247412,1.83058321,85.188,85.142,0.25]
[1646668247813,1.83058321,85.188,85.11,34.8395]
[1646668247814,1.58058321,85.186,85.13,6.25]
[1646668248012,1.58058321,85.179,85.114,5.871]
[1646668248212,6.25,85.178,85.114,5.871]
[1646668248613,6.25,85.178,85.12,17.6231]
[1646668248812,7.83058321,85.178,85.121,5.872]
[1646668249013,6.25,85.178,85.121,5.872]
[1646668249212,6.25,85.178,85.122,0.25]
[1646668249412,6.25,85.178,85.123,5.871]
[1646668249613,6.25,85.178,85.124,0.25]
[1646668249812,6.0,85.177,85.13,17.6211]
[1646668250014,0.25,85.178,85.131,6.121]
[1646668250216,0.25,85.178,85.131,0.25]
[1646668250412,7.83058321,85.179,85.131,0.25]
[1646668250613,6.0,85.178,85.131,0.25]
[1646668250813,0.25,85.177,85.131,0.25]
[1646668251014,6.25,85.177,85.131,6.25]
[1646668251516,6.25,85.177,85.131,0.25]
[1646668252113,0.25,85.177,85.131,0.25]
[1646668252513,0.25,85.179,85.131,0.25]
[1646668253215,1.58058321,85.181,85.14,17.6192]
[1646668253417,1.58058321,85.181,85.141,122.821]
[1646668253613,2.83613526,85.197,85.143,0.2674366]
[1646668253614,1.58058321,85.19,85.143,0.2674366]
[1646668253814,1.58058321,85.194,85.144,186.76]
[1646668254014,1.58058321,85.194,85.143,6.25]
[1646668254015,1.58058321,85.193,85.148,70.06]
[1646668254214,47.15528153,85.192,85.15,0.22638696]
[1646668254416,48.73586474,85.192,85.15,17.6131]
[1646668254613,48.73586474,85.192,85.151,0.25]
[1646668254815,48.73586474,85.192,85.149,0.25]
[1646668255014,1.58058321,85.186,85.149,0.25]
[1646668255216,1.58058321,85.182,85.149,0.25]
[1646668255417,7.58058321,85.181,85.149,0.25]
[1646668255714,6.0,85.18,85.13,17.619]
[1646668256613,7.58058321,85.18,85.13,17.619]
[1646668257013,1.58058321,85.179,85.13,17.619]
[1646668257214,6.0,85.178,85.131,6.121]
[1646668257413,6.0,85.178,85.14,17.6181]
[1646668257613,6.0,85.178,85.141,0.25]
[1646668257813,6.0,85.179,85.141,0.25]
[1646668258038,1.58058321,85.181,85.141,0.25]
[1646668258415,1.58058321,85.182,85.141,0.25]
[1646668259416,1.58058321,85.182,85.131,0.25]
[1646668259816,5.871,85.181,85.131,0.25]
[1646668260117,1.58058321,85.182,85.131,0.25]
[1646668260316,1.58058321,85.183,85.128,70.06]
[1646668260518,1.58058321,85.18,85.128,70.06]
[1646668260717,1.83058321,85.179,85.128,70.06]
[1646668260917,1.58058321,85.178,85.124,23.774]
[1646668261117,0.25,85.177,85.124,23.774]
[1646668261518,1.83058321,85.177,85.124,23.774]
[1646668261718,1.83058321,85.177,85.125,0.25]
[1646668262021,1.83058321,85.177,85.13,17.6201]
[1646668262022,1.58058321,85.177,85.13,17.6201]
[1646668262218,5.871,85.189,85.124,23.774]
[1646668262219,1.58058321,85.179,85.131,0.25]
[1646668262419,1.58058321,85.182,85.131,0.25]
[1646668262619,6.0,85.181,85.131,0.25]
[1646668262821,1.58058321,85.182,85.131,0.25]
[1646668263321,6.0,85.181,85.125,0.25]
[1646668263923,7.58058321,85.181,85.125,0.25]
[1646668264120,7.58058321,85.181,85.13,17.62]
[1646668264324,7.58058321,85.181,85.131,0.25]
[1646668264523,1.58058321,85.182,85.131,0.25]
[1646668264725,7.58058321,85.181,85.131,0.25]
[1646668265542,1.58058321,85.18,85.131,0.25]
[1646668265846,1.58058321,85.179,85.131,0.25]
[1646668266442,1.58058321,85.18,85.131,0.25]
[1646668266642,6.0,85.179,85.131,0.25]
[1646668266843,1.58058321,85.175,85.131,0.25]
[1646668267042,1.58058321,85.173,85.122,0.25]
[1646668267243,1.58058321,85.166,85.121,5.871]
[1646668267443,1.58058321,85.163,85.121,5.871]
[1646668267644,49.74125579,85.162,85.121,5.871]
[1646668268444,51.321839,85.162,85.121,5.871]
[1646668268642,17.6257,85.16,85.121,5.871]
[1646668268843,7.83058321,85.159,85.121,5.871]
[1646668269042,1.58058321,85.158,85.121,5.871]
[1646668269243,6.25,85.157,85.122,0.25]
[1646668269842,6.0,85.156,85.122,0.25]
[1646668270044,0.25,85.157,85.122,0.25]
[1646668270243,0.25,85.158,85.122,0.25]
[1646668271344,0.25,85.159,85.122,0.25]
[1646668271545,5.872,85.18,85.122,0.25]
[1646668271546,1.58058321,85.164,85.122,0.25]
[1646668271745,1.58058321,85.166,85.122,0.25]
[1646668271945,22.93224574,85.19,85.122,0.25]
[1646668271946,1.58058321,85.17,85.122,0.25]
[1646668272147,1.58058321,85.171,85.122,0.25]
[1646668272346,1.58058321,85.172,85.122,0.25]
[1646668272846,1.58058321,85.173,85.122,0.25]
[1646668273047,1.58058321,85.173,85.13,17.6204]
[1646668273247,1.58058321,85.176,85.131,0.25]
[1646668273648,1.58058321,85.174,85.131,0.25]
[1646668274047,1.58058321,85.173,85.131,0.25]
[1646668274447,1.58058321,85.172,85.131,0.25]
[1646668274648,1.58058321,85.173,85.131,0.25]
[1646668275249,1.58058321,85.173,85.14,17.6181]
[1646668275447,1.58058321,85.172,85.141,0.25]
[1646668275651,5.871,85.19,85.141,0.25]
[1646668275652,1.58058321,85.174,85.141,0.25]
[1646668275851,1.58058321,85.175,85.141,0.25]
[1646668276252,2.83613526,85.188,85.141,0.25]
[1646668276253,1.58058321,85.174,85.141,0.25]
[1646668276452,1.58058321,85.175,85.141,0.25]
[1646668276952,1.58058321,85.175,85.131,0.25]
[1646668277154,1.58058321,85.177,85.131,0.25]
[1646668277353,1.58058321,85.179,85.13,116.95]
[1646668277553,1.58058321,85.179,85.13,0.25]
[1646668277755,1.58058321,85.178,85.13,0.25]
[1646668277954,1.58058321,85.175,85.13,17.8701]
[1646668278353,1.58058321,85.176,85.13,17.8701]
[1646668278553,1.58058321,85.175,85.13,17.8701]
[1646668279156,1.58058321,85.175,85.13,0.25]
[1646668279353,1.58058321,85.167,85.121,0.25]
[1646668279553,1.58058321,85.157,85.102,17.5854]
[1646668279756,1.58058321,85.151,85.103,5.873]
[1646668279954,6.25,85.15,85.103,5.873]
[1646668280255,46.53019861,85.15,85.099,5.873]
[1646668280458,48.11078182,85.15,85.09,29.3278]
[1646668280853,48.11078182,85.15,85.091,0.25]
[1646668281055,65.73998182,85.15,85.092,5.873]
[1646668281260,65.73998182,85.15,85.093,0.25]
[1646668281457,64.15939861,85.15,85.094,5.873]
[1646668281657,46.53019861,85.15,85.095,0.25]
[1646668281855,46.53019861,85.15,85.096,5.873]
[1646668282057,46.53019861,85.15,85.097,0.25]
[1646668282259,46.53019861,85.15,85.098,5.873]
[1646668282458,46.53019861,85.15,85.099,0.25]
[1646668282658,46.53019861,85.15,85.1,5.873]
[1646668282857,46.53019861,85.15,85.101,0.25]
[1646668283861,46.53019861,85.15,85.102,5.873]
[1646668284059,1.58058321,85.149,85.103,0.25]
[1646668284260,17.6308,85.14,85.104,5.873]
[1646668284459,6.0,85.139,85.105,0.25]
[1646668284658,6.0,85.139,85.103,0.25]
[1646668285061,6.0,85.146,85.103,0.25]
[1646668285759,0.25,85.148,85.1,17.6255]
[1646668285760,6.25,85.148,85.101,0.25]
[1646668285959,5.873,85.147,85.101,0.25]
[1646668286159,6.0,85.146,85.101,0.25]
[1646668286363,5.873,85.145,85.101,0.25]
[1646668286559,6.0,85.144,85.101,0.25]
[1646668286759,5.873,85.143,85.101,0.25]
[1646668286959,6.0,85.142,85.101,0.25]
[1646668287562,6.0,85.146,85.101,0.25]
[1646668287762,5.873,85.145,85.091,0.25]
[1646668287964,6.0,85.144,85.091,0.25]
[1646668288161,5.873,85.143,85.091,0.25]
[1646668288364,6.0,85.142,85.091,0.25]
[1646668288564,5.873,85.147,85.093,116.7]
[1646668288763,5.873,85.147,85.103,116.7]
[1646668288966,1.58058321,85.165,85.105,0.33538646]
[1646668289162,5.873,85.169,85.104,12.123]
[1646668289163,0.25,85.164,85.104,12.123]
[1646668289367,1.58058321,85.163,85.104,12.123]
[1646668289566,43.83443761,85.162,85.104,29.8356]
[1646668289764,0.25,85.161,85.104,23.8356]
[1646668289963,0.25,85.161,85.104,6.123]
[1646668290264,19.20648321,85.16,85.104,6.123]
[1646668290464,1.58058321,85.156,85.104,6.123]
[1646668290664,1.58058321,85.155,85.104,6.123]
[1646668291065,0.25,85.154,85.076,24.1967]
[1646668291365,1.58058321,85.147,85.081,6.0]
[1646668291566,12.123,85.146,85.081,6.0]
[1646668291763,6.25,85.146,85.081,6.0]
[1646668292166,7.83058321,85.146,85.081,6.0]
[1646668292363,7.83058321,85.146,85.082,0.25]
[1646668292564,6.25,85.146,85.082,0.25]
[1646668292763,0.25,85.146,85.082,0.25]
[1646668293063,6.25,85.146,85.09,17.6291]
[1646668293263,6.25,85.146,85.091,0.25]
[1646668293764,6.0,85.145,85.091,0.25]
[1646668293966,6.123,85.144,85.091,0.25]
[1646668294167,6.0,85.143,85.091,0.25]
[1646668294366,6.123,85.142,85.082,0.25]
[1646668294566,6.0,85.141,85.082,0.25]
[1646668294768,0.25,85.14,85.082,0.25]
[1646668295166,5.873,85.139,85.082,0.25]
[1646668295368,0.25,85.138,85.082,0.25]
[1646668295581,5.873,85.137,85.082,0.25]
[1646668295771,42.15611876,85.136,85.082,0.25]
[1646668296372,41.90611876,85.136,85.082,17.5483]
[1646668296571,41.90611876,85.136,85.09,17.6282]
[1646668296772,41.90611876,85.136,85.091,0.25]
[1646668296970,1.58058321,85.156,85.091,0.25]
[1646668297170,7.45458321,85.157,85.091,0.25]
[1646668297570,5.874,85.157,85.1,17.6273]
[1646668297771,5.874,85.157,85.101,0.25]
[1646668298172,35.97286862,85.149,85.101,0.25]
[1646668298371,6.0,85.148,85.101,0.25]
[1646668298670,35.97286862,85.149,85.11,17.625]
[1646668298871,29.4746,85.158,85.111,0.25]
[1646668299074,0.25,85.157,85.111,0.25]
[1646668299474,6.25,85.157,85.111,0.25]
[1646668299672,5.873,85.163,85.111,6.25]
[1646668299872,5.873,85.163,85.12,17.623]
[1646668300072,5.872,85.169,85.121,0.25]
[1646668300673,5.872,85.169,85.1,116.7]
[1646668300872,48.45592833,85.17,83.694,0.34465221]
[1646668300873,6.0,85.168,85.102,23.7378]
[1646668301073,1.58058321,85.162,85.102,23.7378]
[1646668301273,13.70358321,85.161,85.102,23.7378]
[1646668301581,7.83058321,85.161,85.102,23.7378]
[1646668301776,5.873,85.16,85.103,42.05949024]
[1646668301974,5.873,85.16,85.11,17.625]
[1646668302174,22.7456,85.166,85.111,6.25]
[1646668302374,22.7456,85.166,85.111,0.25]
[1646668302573,22.7456,85.166,85.104,0.25]
[1646668302973,22.7456,85.166,85.12,17.623]
[1646668303275,22.7456,85.166,85.121,6.25]
[1646668303473,22.7456,85.166,85.121,0.25]
[1646668303676,5.872,85.165,85.121,0.25]
[1646668304274,5.872,85.165,85.103,6.25]
[1646668304674,6.0,85.164,85.103,0.25]
[1646668304873,6.0,85.165,85.103,0.25]
[1646668305076,7.58058321,85.165,85.103,0.25]
[1646668305276,7.58058321,85.165,85.11,17.6249]
[1646668305475,1.58058321,85.164,85.111,0.25]
[1646668305676,6.0,85.163,85.111,0.25]
[1646668306276,24.32618321,85.166,85.12,17.6231]
[1646668306475,24.32618321,85.166,85.121,0.25]
[1646668306677,22.7456,85.166,85.121,0.25]
[1646668307278,1.58058321,85.165,85.121,0.25]
[1646668307679,1.58058321,85.164,85.121,0.25]
[1646668309381,1.58058321,85.165,85.121,0.25]
[1646668310181,1.58058321,85.164,85.121,0.25]
[1646668310581,1.58058321,85.165,85.121,0.25]
[1646668310781,1.58058321,85.164,85.121,0.25]
[1646668310983,1.58058321,85.165,85.121,0.25]
[1646668311784,1.58058321,85.165,85.13,17.6209]
[1646668311982,1.58058321,85.169,85.131,0.25]
[1646668312383,1.58058321,85.168,85.131,0.25]
[1646668312782,35.01790166,85.167,85.131,0.25]
[1646668313183,35.01790166,85.167,85.121,0.25]
[1646668314082,35.01790166,85.167,85.12,17.6228]
[1646668314503,36.59848487,85.167,85.112,22.8519]
[1646668314707,1.83058321,85.166,85.112,22.8519]
[1646668314904,1.58058321,85.161,85.112,22.8519]
[1646668315107,0.25,85.16,85.112,22.8519]
[1646668315307,1.83058321,85.16,85.112,22.8519]
[1646668315506,1.58058321,85.16,85.12,17.6231]
[1646668315706,1.58058321,85.163,85.12,17.6231]
[1646668316205,1.58058321,85.163,85.121,0.25]
[1646668316406,1.58058321,85.164,85.121,0.25]
[1646668316706,1.58058321,85.165,85.121,0.25]
[1646668316905,1.58058321,85.166,85.13,17.621]
[1646668317107,6.0,85.165,85.131,0.25]
[1646668317310,24.2526,85.172,85.131,0.25]
[1646668317311,1.58058321,85.17,85.131,0.25]
[1646668317509,5.871,85.169,85.131,0.25]
[1646668317808,1.58058321,85.171,85.131,0.25]
[1646668318008,1.58058321,85.172,85.131,0.25]
[1646668318208,1.58058321,85.172,85.14,17.6186]
[1646668318407,1.58058321,85.178,85.141,0.25]
[1646668318810,1.58058321,85.179,85.141,0.25]
[1646668319411,44.7215942,85.18,85.141,0.25]
[1646668319610,1.58058321,85.176,85.126,0.25]
[1646668319813,1.58058321,85.175,85.126,0.25]
[1646668321011,1.58058321,85.175,85.13,17.6208]
[1646668321212,44.7215942,85.18,85.13,17.6208]
[1646668321213,1.58058321,85.176,85.13,17.6208]
[1646668321513,4.41671847,85.174,85.131,70.06]
[1646668321750,2.83613526,85.174,85.136,116.7]
[1646668321964,1.58058321,85.186,85.141,70.06]
[1646668322152,3.16611048,85.212,85.151,116.7]
[1646668322153,1.58058321,85.201,85.151,116.7]
[1646668322331,1.58058321,85.205,85.155,116.7]
[1646668322514,1.58058321,85.208,85.156,76.06]
[1646668322714,1.58058321,85.205,85.157,0.25]
[1646668323123,17.6181,85.2,85.157,0.25]
[1646668323317,6.12,85.199,85.157,0.25]
[1646668323515,1.58058321,85.197,85.157,0.25]
[1646668323715,5.87,85.196,85.135,0.25]
[1646668323918,5.87,85.196,85.135,44.65912251]
[1646668324115,5.87,85.196,85.136,6.0]
[1646668324315,5.87,85.198,85.137,0.25]
[1646668324517,1.58058321,85.197,85.137,0.25]
[1646668324817,5.87,85.196,85.137,0.25]
[1646668325214,4.41671847,85.199,85.137,0.25]
[1646668325215,5.87,85.198,85.137,0.25]
[1646668325818,60.68896846,85.197,85.137,0.25]
[1646668326016,5.87,85.196,85.136,0.25]
[1646668326215,6.0,85.195,85.115,0.25]
[1646668326417,7.45158321,85.194,85.115,0.25]
[1646668326617,7.58058321,85.193,85.115,45.30641249]
[1646668326821,1.58058321,85.19,85.116,6.0]
[1646668327117,17.623,85.18,85.117,0.25]
[1646668327518,44.07741442,85.179,85.117,0.25]
[1646668327919,5.872,85.178,85.117,0.25]
[1646668328120,5.872,85.178,85.12,17.6207]
[1646668328320,5.872,85.178,85.121,6.25]
[1646668328521,44.07741442,85.179,85.121,6.25]
[1646668328723,44.07741442,85.179,85.121,0.25]
[1646668329319,44.07741442,85.179,85.13,17.6191]
[1646668329519,44.07741442,85.179,85.131,6.25]
[1646668329727,2.83613526,85.189,85.131,6.25]
[1646668329923,0.25,85.188,85.131,6.25]
[1646668330123,1.58058321,85.191,85.132,70.06]
[1646668330324,1.58058321,85.201,85.141,116.7]